[Event "*** Titled Tuesday Blitz"]
[Site "Chess.com"]
[Date "2021.04.06"]
[Round "8"]
[White "korbul"]
[Black "Diaschess88"]
[Result "1-0"]
[WhiteElo "2554"]
[BlackElo "2395"]
[TimeControl "180+1"]
[EndTime "11:29:29 PDT"]
[Termination "korbul won by resignation"]

1. e4 {[%clk 0:03:00.9]} 1... c6 {[%clk 0:02:41.2]} 2. Nc3 {[%clk 0:02:59.8]}
2... d5 {[%clk 0:02:42.1]} 3. Nf3 {[%clk 0:02:59.7]} 3... dxe4 {[%clk
0:02:42.3]} 4. Nxe4 {[%clk 0:02:59.7]} 4... Nf6 {[%clk 0:02:43.2]} 5. Ng3 {[%clk
0:02:59.2]} 5... Bg4 {[%clk 0:02:39.4]} 6. h3 {[%clk 0:02:58.4]} 6... Bxf3
{[%clk 0:02:39.6]} 7. Qxf3 {[%clk 0:02:58.1]} 7... e6 {[%clk 0:02:40.5]} 8. Bc4
{[%clk 0:02:52.9]} 8... Nbd7 {[%clk 0:02:41.4]} 9. O-O {[%clk 0:02:52.2]} 9...
Ne5 {[%clk 0:02:40.7]} 10. Qe2 {[%clk 0:02:51.2]} 10... Nxc4 {[%clk 0:02:41.6]}
11. Qxc4 {[%clk 0:02:50.8]} 11... Qd5 {[%clk 0:02:41.7]} 12. Qe2 {[%clk
0:02:48.3]} 12... Bd6 {[%clk 0:02:41.4]} 13. c4 {[%clk 0:02:41.1]} 13... Qe5
{[%clk 0:02:37.5]} 14. Qf3 {[%clk 0:02:36.2]} 14... h5 {[%clk 0:02:28.4]} 15.
Rd1 {[%clk 0:02:34.4]} 15... Qd4 {[%clk 0:02:04.7]} 16. d3 {[%clk 0:02:25.9]}
16... h4 {[%clk 0:01:55.3]} 17. Ne2 {[%clk 0:02:22.1]} 17... Qc5 {[%clk
0:01:50.3]} 18. b3 {[%clk 0:02:20.2]} 18... Qe5 {[%clk 0:01:42.5]} 19. Bf4
{[%clk 0:02:17.4]} 19... Qc5 {[%clk 0:01:36.7]} 20. d4 {[%clk 0:02:16.8]} 20...
Qa3 {[%clk 0:01:35.8]} 21. Bg5 {[%clk 0:02:10.7]} 21... Be7 {[%clk 0:01:33.4]}
22. Nc3 {[%clk 0:02:02.4]} 22... Qa5 {[%clk 0:01:20.6]} 23. Bd2 {[%clk
0:01:58.4]} 23... Qh5 {[%clk 0:01:19.4]} 24. Qd3 {[%clk 0:01:42.7]} 24... O-O-O
{[%clk 0:01:17.9]} 25. Bf4 {[%clk 0:01:40.9]} 25... Bd6 {[%clk 0:01:12.5]} 26.
Bxd6 {[%clk 0:01:39.4]} 26... Rxd6 {[%clk 0:01:13.4]} 27. b4 {[%clk 0:01:37.7]}
27... Rhd8 {[%clk 0:01:12.6]} 28. Qe3 {[%clk 0:01:35.3]} 28... Kb8 {[%clk
0:01:06.9]} 29. c5 {[%clk 0:01:29.3]} 29... R6d7 {[%clk 0:01:04.5]} 30. b5
{[%clk 0:01:28.8]} 30... cxb5 {[%clk 0:00:51.9]} 31. Nxb5 {[%clk 0:01:26.7]}
31... a6 {[%clk 0:00:40.9]} 32. Nd6 {[%clk 0:01:24.9]} 32... Ne8 {[%clk
0:00:33.1]} 33. Nc4 {[%clk 0:01:21.2]} 33... Qf5 {[%clk 0:00:23.6]} 34. Rab1
{[%clk 0:00:45.4]} 34... Rc7 {[%clk 0:00:19.9]} 35. Na5 {[%clk 0:00:34.2]} 35...
Nf6 {[%clk 0:00:19.7]} 36. Rb3 {[%clk 0:00:31]} 36... Nd5 {[%clk 0:00:17.7]} 37.
Qe2 {[%clk 0:00:21.4]} 37... Ka7 {[%clk 0:00:16.9]} 38. Rdb1 {[%clk 0:00:19.4]}
38... Rdd7 {[%clk 0:00:13.9]} 39. Qb2 {[%clk 0:00:18.1]} 39... Nf4 {[%clk
0:00:12.5]} 40. c6 {[%clk 0:00:16]} 40... bxc6 {[%clk 0:00:09.7]} 41. Rb8 {[%clk
0:00:14.8]} 41... Nd5 {[%clk 0:00:08]} 42. Nxc6+ {[%clk 0:00:13.2]} 42... Rxc6
{[%clk 0:00:07.8]} 43. Ra8+ {[%clk 0:00:12]} 43... Kxa8 {[%clk 0:00:06.9]} 1-0

[Event "*** Titled Tuesday Blitz"]
[Site "Chess.com"]
[Date "2021.04.06"]
[Round "8"]
[White "kuli4ik"]
[Black "anon102030"]
[Result "1-0"]
[WhiteElo "2887"]
[BlackElo "2747"]
[TimeControl "180+1"]
[EndTime "11:29:30 PDT"]
[Termination "kuli4ik won on time"]

1. Nf3 {[%clk 0:02:18.6]} 1... d6 {[%clk 0:02:59.3]} 2. g3 {[%clk 0:02:17.1]}
2... g6 {[%clk 0:02:59.6]} 3. Bg2 {[%clk 0:02:16.9]} 3... Bg7 {[%clk 0:03:00.2]}
4. O-O {[%clk 0:02:17.5]} 4... Nc6 {[%clk 0:03:00.8]} 5. d4 {[%clk 0:02:14.2]}
5... e5 {[%clk 0:03:00.9]} 6. dxe5 {[%clk 0:02:14]} 6... Nxe5 {[%clk 0:02:56.8]}
7. Nxe5 {[%clk 0:02:11.3]} 7... Bxe5 {[%clk 0:02:57.7]} 8. c4 {[%clk 0:02:07.3]}
8... Ne7 {[%clk 0:02:54.8]} 9. Nc3 {[%clk 0:02:05.2]} 9... O-O {[%clk
0:02:53.4]} 10. Qd2 {[%clk 0:02:05.6]} 10... Bg7 {[%clk 0:02:47.5]} 11. b3
{[%clk 0:02:05.5]} 11... Rb8 {[%clk 0:02:41.7]} 12. Bb2 {[%clk 0:02:04.7]} 12...
b6 {[%clk 0:02:42.4]} 13. Rac1 {[%clk 0:02:03]} 13... Bb7 {[%clk 0:02:41.9]} 14.
Nd5 {[%clk 0:02:03.3]} 14... c6 {[%clk 0:02:32.9]} 15. Bxg7 {[%clk 0:02:01]}
15... Kxg7 {[%clk 0:02:33.8]} 16. Qd4+ {[%clk 0:01:53.2]} 16... f6 {[%clk
0:02:33.6]} 17. Nf4 {[%clk 0:01:53.2]} 17... Bc8 {[%clk 0:02:21.1]} 18. Rfd1
{[%clk 0:01:51.4]} 18... Nf5 {[%clk 0:02:01.5]} 19. Qd2 {[%clk 0:01:41.2]} 19...
c5 {[%clk 0:02:00.8]} 20. e3 {[%clk 0:01:41]} 20... g5 {[%clk 0:01:52.5]} 21.
Nd5 {[%clk 0:01:39.3]} 21... Bb7 {[%clk 0:01:43.5]} 22. Qc3 {[%clk 0:01:37.9]}
22... Qe8 {[%clk 0:01:34.4]} 23. Rd2 {[%clk 0:01:33.7]} 23... Qe5 {[%clk
0:01:34.4]} 24. Qc2 {[%clk 0:01:32.2]} 24... Rbd8 {[%clk 0:01:28.1]} 25. Rcd1
{[%clk 0:01:20.9]} 25... Bc8 {[%clk 0:01:10.4]} 26. Rd3 {[%clk 0:01:15.8]} 26...
h5 {[%clk 0:01:09.2]} 27. Nc3 {[%clk 0:01:07.7]} 27... Ne7 {[%clk 0:00:59.3]}
28. R3d2 {[%clk 0:00:52.3]} 28... f5 {[%clk 0:00:49.1]} 29. Nd5 {[%clk
0:00:48.7]} 29... Nxd5 {[%clk 0:00:34.3]} 30. Rxd5 {[%clk 0:00:47.8]} 30... Qe7
{[%clk 0:00:33]} 31. Qd2 {[%clk 0:00:45]} 31... Rf6 {[%clk 0:00:28.9]} 32. e4
{[%clk 0:00:45.4]} 32... Kg6 {[%clk 0:00:20.4]} 33. e5 {[%clk 0:00:44.8]} 33...
Re6 {[%clk 0:00:16.3]} 34. exd6 {[%clk 0:00:39.4]} 34... Qf6 {[%clk 0:00:13.4]}
35. d7 {[%clk 0:00:31.5]} 35... Bb7 {[%clk 0:00:13.6]} 36. Rd3 {[%clk
0:00:31.3]} 36... Bxg2 {[%clk 0:00:13.1]} 37. Kxg2 {[%clk 0:00:32.2]} 37... f4
{[%clk 0:00:12.2]} 38. gxf4 {[%clk 0:00:26.3]} 38... gxf4 {[%clk 0:00:10.9]} 39.
Rd5 {[%clk 0:00:26]} 39... Kh6 {[%clk 0:00:06]} 40. Kh1 {[%clk 0:00:22.3]} 40...
Qf7 {[%clk 0:00:04.3]} 41. Rd6 {[%clk 0:00:15.7]} 41... Kh7 {[%clk 0:00:04.1]}
42. Qd3+ {[%clk 0:00:15.4]} 42... Kh6 {[%clk 0:00:02.4]} 43. Qd5 {[%clk
0:00:15.5]} 1-0

[Event "*** Titled Tuesday Blitz"]
[Site "Chess.com"]
[Date "2021.04.06"]
[Round "8"]
[White "joejan"]
[Black "beautroll"]
[Result "0-1"]
[WhiteElo "2278"]
[BlackElo "2459"]
[TimeControl "180+1"]
[EndTime "11:29:30 PDT"]
[Termination "beautroll won on time"]

1. e4 {[%clk 0:03:00.9]} 1... c5 {[%clk 0:02:58.5]} 2. Nc3 {[%clk 0:03:00.8]}
2... d6 {[%clk 0:02:57.5]} 3. f4 {[%clk 0:03:01.7]} 3... Nf6 {[%clk 0:02:56.7]}
4. Nf3 {[%clk 0:03:02.2]} 4... e6 {[%clk 0:02:54.2]} 5. Bc4 {[%clk 0:03:00.5]}
5... Nc6 {[%clk 0:02:46.6]} 6. d3 {[%clk 0:03:00]} 6... Be7 {[%clk 0:02:45.3]}
7. O-O {[%clk 0:02:58.7]} 7... O-O {[%clk 0:02:41.6]} 8. h3 {[%clk 0:02:58.5]}
8... a6 {[%clk 0:02:39.4]} 9. a4 {[%clk 0:02:57.4]} 9... d5 {[%clk 0:02:35.5]}
10. Bb3 {[%clk 0:02:55.8]} 10... c4 {[%clk 0:02:30.2]} 11. dxc4 {[%clk
0:02:53.8]} 11... d4 {[%clk 0:02:29]} 12. Ne2 {[%clk 0:02:43.6]} 12... Bc5
{[%clk 0:02:22.2]} 13. Ng3 {[%clk 0:02:38]} 13... d3+ {[%clk 0:01:47.4]} 14. Kh1
{[%clk 0:02:35.8]} 14... Nb4 {[%clk 0:01:26.4]} 15. c3 {[%clk 0:02:33.4]} 15...
Nc6 {[%clk 0:01:24.4]} 16. e5 {[%clk 0:02:33.2]} 16... Ne8 {[%clk 0:01:18.7]}
17. Ne4 {[%clk 0:02:32.7]} 17... Be7 {[%clk 0:01:15.5]} 18. Be3 {[%clk
0:02:28.4]} 18... f5 {[%clk 0:01:10.9]} 19. Nc5 {[%clk 0:02:21.1]} 19... d2
{[%clk 0:01:02.5]} 20. Qxd2 {[%clk 0:02:10.5]} 20... Qb6 {[%clk 0:00:57.2]} 21.
Nxe6 {[%clk 0:01:18.5]} 21... Qxb3 {[%clk 0:00:55.1]} 22. Nxf8 {[%clk
0:01:19.4]} 22... Kxf8 {[%clk 0:00:55.1]} 23. c5 {[%clk 0:01:05.2]} 23... Be6
{[%clk 0:00:52.1]} 24. Ra3 {[%clk 0:00:59.3]} 24... Qc4 {[%clk 0:00:48.3]} 25.
Rd1 {[%clk 0:00:43.9]} 25... Rd8 {[%clk 0:00:46.6]} 26. Qe1 {[%clk 0:00:43.4]}
26... Rxd1 {[%clk 0:00:40.6]} 27. Qxd1 {[%clk 0:00:43.8]} 27... h6 {[%clk
0:00:36.1]} 28. b4 {[%clk 0:00:39.8]} 28... Qe4 {[%clk 0:00:32.3]} 29. Nd4
{[%clk 0:00:33.8]} 29... Nxd4 {[%clk 0:00:28.9]} 30. Qxd4 {[%clk 0:00:34.5]}
30... Qb1+ {[%clk 0:00:26.7]} 31. Kh2 {[%clk 0:00:33.7]} 31... Nc7 {[%clk
0:00:25.8]} 32. c4 {[%clk 0:00:28]} 32... Qc2 {[%clk 0:00:20.2]} 33. Rc3 {[%clk
0:00:21]} 33... Qxa4 {[%clk 0:00:20]} 34. Qd3 {[%clk 0:00:16.7]} 34... Qc6
{[%clk 0:00:18.8]} 35. Rb3 {[%clk 0:00:12.9]} 35... Qa4 {[%clk 0:00:16.4]} 36.
b5 {[%clk 0:00:11]} 36... axb5 {[%clk 0:00:16.6]} 37. Ra3 {[%clk 0:00:10.9]}
37... Qxc4 {[%clk 0:00:16.5]} 38. Qd1 {[%clk 0:00:05.6]} 38... b4 {[%clk
0:00:15.7]} 39. Ra7 {[%clk 0:00:04.8]} 39... Bd5 {[%clk 0:00:15.3]} 0-1

[Event "*** Titled Tuesday Blitz"]
[Site "Chess.com"]
[Date "2021.04.06"]
[Round "8"]
[White "Isajevsky_Anton"]
[Black "Vincent_Vega95"]
[Result "0-1"]
[WhiteElo "2568"]
[BlackElo "2716"]
[TimeControl "180+1"]
[EndTime "11:29:31 PDT"]
[Termination "Vincent_Vega95 won on time"]

1. c4 {[%clk 0:03:00.9]} 1... Nf6 {[%clk 0:02:59.8]} 2. Nc3 {[%clk 0:03:00.5]}
2... g6 {[%clk 0:03:00.7]} 3. g3 {[%clk 0:03:00.4]} 3... Bg7 {[%clk 0:03:00.8]}
4. Bg2 {[%clk 0:03:00.9]} 4... O-O {[%clk 0:03:01.7]} 5. e3 {[%clk 0:03:01.3]}
5... d6 {[%clk 0:03:01.3]} 6. Nge2 {[%clk 0:03:01.6]} 6... e5 {[%clk 0:03:01.8]}
7. O-O {[%clk 0:03:02.1]} 7... Re8 {[%clk 0:03:01.5]} 8. d3 {[%clk 0:03:01.1]}
8... Nc6 {[%clk 0:02:55.4]} 9. Rb1 {[%clk 0:03:00.4]} 9... a5 {[%clk 0:02:55.4]}
10. a3 {[%clk 0:03:00]} 10... h5 {[%clk 0:02:55.8]} 11. h3 {[%clk 0:02:55.1]}
11... Nh7 {[%clk 0:02:47.2]} 12. f4 {[%clk 0:02:46.7]} 12... f5 {[%clk
0:02:38.9]} 13. e4 {[%clk 0:02:27.8]} 13... Nd4 {[%clk 0:02:37.7]} 14. Be3
{[%clk 0:01:55.8]} 14... h4 {[%clk 0:02:35.5]} 15. fxe5 {[%clk 0:01:24]} 15...
dxe5 {[%clk 0:02:33.8]} 16. exf5 {[%clk 0:01:18.6]} 16... Nxf5 {[%clk
0:02:29.1]} 17. Bf2 {[%clk 0:01:15.7]} 17... hxg3 {[%clk 0:02:28.9]} 18. Nxg3
{[%clk 0:01:15.1]} 18... Nh4 {[%clk 0:02:23.7]} 19. Nge4 {[%clk 0:01:12.5]}
19... Nxg2 {[%clk 0:02:11.3]} 20. Kxg2 {[%clk 0:01:13.4]} 20... Rf8 {[%clk
0:02:04.4]} 21. Bg3 {[%clk 0:00:47.1]} 21... Rf5 {[%clk 0:02:04.5]} 22. Nd5
{[%clk 0:00:42.2]} 22... Be6 {[%clk 0:02:01.9]} 23. Ne3 {[%clk 0:00:41.7]} 23...
Rxf1 {[%clk 0:02:02.3]} 24. Qxf1 {[%clk 0:00:40.5]} 24... Qd7 {[%clk 0:02:01.5]}
25. Ng4 {[%clk 0:00:34.6]} 25... Bxg4 {[%clk 0:01:49.6]} 26. hxg4 {[%clk
0:00:34.6]} 26... Qxg4 {[%clk 0:01:50.2]} 27. Qf3 {[%clk 0:00:34.6]} 27... Qxf3+
{[%clk 0:01:14.2]} 28. Kxf3 {[%clk 0:00:34.8]} 28... Rd8 {[%clk 0:01:14.9]} 29.
Ke2 {[%clk 0:00:31.8]} 29... Nf8 {[%clk 0:01:11.7]} 30. Ng5 {[%clk 0:00:24.9]}
30... Bf6 {[%clk 0:01:09.2]} 31. Nf3 {[%clk 0:00:21.8]} 31... Re8 {[%clk
0:01:07.1]} 32. Ke3 {[%clk 0:00:15.7]} 32... Nd7 {[%clk 0:01:05.6]} 33. b4
{[%clk 0:00:14.5]} 33... axb4 {[%clk 0:01:05.9]} 34. axb4 {[%clk 0:00:15.4]}
34... Kg7 {[%clk 0:01:03.2]} 35. Re1 {[%clk 0:00:11.3]} 35... Rh8 {[%clk
0:00:57.3]} 36. Kf2 {[%clk 0:00:09]} 36... Rh5 {[%clk 0:00:53.7]} 37. Re4 {[%clk
0:00:08.2]} 37... c6 {[%clk 0:00:53.4]} 38. c5 {[%clk 0:00:08]} 38... Kf7 {[%clk
0:00:53.3]} 39. Kg2 {[%clk 0:00:06.2]} 39... Rf5 {[%clk 0:00:53.4]} 40. Kf2
{[%clk 0:00:06]} 40... Ke6 {[%clk 0:00:48.8]} 41. Ke3 {[%clk 0:00:05.1]} 41...
Kd5 {[%clk 0:00:48.9]} 42. Rg4 {[%clk 0:00:05.4]} 42... g5 {[%clk 0:00:46]} 43.
Nd2 {[%clk 0:00:04.9]} 43... Nf8 {[%clk 0:00:44.8]} 44. Ne4 {[%clk 0:00:05.4]}
44... Be7 {[%clk 0:00:43.1]} 45. Nc3+ {[%clk 0:00:05.1]} 45... Ke6 {[%clk
0:00:42.9]} 46. Re4 {[%clk 0:00:04.9]} 46... Ng6 {[%clk 0:00:42.9]} 47. d4
{[%clk 0:00:04.6]} 47... Bf6 {[%clk 0:00:42.2]} 48. b5 {[%clk 0:00:04.6]} 48...
g4 {[%clk 0:00:38.7]} 49. dxe5 {[%clk 0:00:03.2]} 49... Rf3+ {[%clk 0:00:35.3]}
50. Kd2 {[%clk 0:00:02.3]} 50... Bg5+ {[%clk 0:00:35.4]} 51. Kc2 {[%clk
0:00:02]} 51... Rxg3 {[%clk 0:00:36]} 52. bxc6 {[%clk 0:00:01.6]} 52... bxc6
{[%clk 0:00:36.9]} 0-1

[Event "*** Titled Tuesday Blitz"]
[Site "Chess.com"]
[Date "2021.04.06"]
[Round "8"]
[White "GigaQuparadze"]
[Black "tjychess"]
[Result "1-0"]
[WhiteElo "2853"]
[BlackElo "2633"]
[TimeControl "180+1"]
[EndTime "11:29:35 PDT"]
[Termination "GigaQuparadze won on time"]

1. e4 {[%clk 0:03:00.9]} 1... e5 {[%clk 0:02:58.8]} 2. Nf3 {[%clk 0:03:00.2]}
2... Nc6 {[%clk 0:02:59.2]} 3. Bb5 {[%clk 0:02:59.6]} 3... a6 {[%clk 0:02:59.2]}
4. Ba4 {[%clk 0:02:59.7]} 4... Nf6 {[%clk 0:02:59.8]} 5. O-O {[%clk 0:02:59.2]}
5... b5 {[%clk 0:03:00.5]} 6. Bb3 {[%clk 0:02:58.3]} 6... Bc5 {[%clk 0:03:01.4]}
7. a4 {[%clk 0:02:58.2]} 7... Bb7 {[%clk 0:03:00.8]} 8. c3 {[%clk 0:02:56.4]}
8... d6 {[%clk 0:03:00.7]} 9. d4 {[%clk 0:02:56.2]} 9... Bb6 {[%clk 0:03:00.6]}
10. Na3 {[%clk 0:02:55.1]} 10... O-O {[%clk 0:02:55.7]} 11. Bg5 {[%clk 0:02:54]}
11... h6 {[%clk 0:02:56]} 12. Bxf6 {[%clk 0:02:52.9]} 12... Qxf6 {[%clk
0:02:56.9]} 13. d5 {[%clk 0:02:49.8]} 13... Ne7 {[%clk 0:02:52.2]} 14. axb5
{[%clk 0:02:48.1]} 14... axb5 {[%clk 0:02:49.1]} 15. Nxb5 {[%clk 0:02:47.8]}
15... Rxa1 {[%clk 0:02:45.1]} 16. Qxa1 {[%clk 0:02:48.7]} 16... Qf4 {[%clk
0:02:23.7]} 17. c4 {[%clk 0:02:33.3]} 17... Qxe4 {[%clk 0:01:59.1]} 18. Qd1
{[%clk 0:02:32.4]} 18... Qg6 {[%clk 0:01:29.3]} 19. Kh1 {[%clk 0:02:18.4]} 19...
Bc8 {[%clk 0:01:18.5]} 20. Bc2 {[%clk 0:02:15.7]} 20... Qf6 {[%clk 0:01:12.5]}
21. Nd2 {[%clk 0:02:12.1]} 21... g6 {[%clk 0:01:07.6]} 22. b4 {[%clk 0:02:11.4]}
22... Qh4 {[%clk 0:00:53.8]} 23. Ne4 {[%clk 0:02:05.1]} 23... f5 {[%clk
0:00:52.9]} 24. c5 {[%clk 0:02:03.7]} 24... fxe4 {[%clk 0:00:24.4]} 25. cxb6
{[%clk 0:02:03.3]} 25... cxb6 {[%clk 0:00:25.3]} 26. Nxd6 {[%clk 0:02:02.1]}
26... Rxf2 {[%clk 0:00:25.8]} 27. Rxf2 {[%clk 0:01:59.1]} 27... Qxf2 {[%clk
0:00:26.7]} 28. Bxe4 {[%clk 0:01:54.6]} 28... Bg4 {[%clk 0:00:21.7]} 29. Qg1
{[%clk 0:01:49.5]} 29... Qd2 {[%clk 0:00:15.8]} 30. b5 {[%clk 0:01:09]} 30...
Nxd5 {[%clk 0:00:15.9]} 31. h3 {[%clk 0:01:05]} 31... Be6 {[%clk 0:00:14.1]} 32.
Nc4 {[%clk 0:00:58.9]} 32... Qe2 {[%clk 0:00:09.6]} 33. Nd6 {[%clk 0:00:46.7]}
33... Kg7 {[%clk 0:00:05]} 34. Bf3 {[%clk 0:00:46]} 34... Qd2 {[%clk 0:00:03.2]}
35. Nc4 {[%clk 0:00:45.2]} 35... Qf4 {[%clk 0:00:03]} 36. Nxb6 {[%clk
0:00:39.8]} 36... Nxb6 {[%clk 0:00:02.2]} 37. Qxb6 {[%clk 0:00:40.7]} 37... Bxh3
{[%clk 0:00:02.2]} 38. Qc7+ {[%clk 0:00:38.4]} 38... Kf6 {[%clk 0:00:02.6]} 39.
Qd8+ {[%clk 0:00:35.4]} 39... Kg7 {[%clk 0:00:02.7]} 40. Qe7+ {[%clk 0:00:31.1]}
40... Kh8 {[%clk 0:00:03.1]} 41. Qd8+ {[%clk 0:00:30.3]} 41... Kh7 {[%clk
0:00:03.4]} 42. Qc7+ {[%clk 0:00:30.3]} 42... Kg8 {[%clk 0:00:03.7]} 43. b6
{[%clk 0:00:29.7]} 43... Bf5 {[%clk 0:00:02.3]} 44. Qd8+ {[%clk 0:00:18]} 44...
Kg7 {[%clk 0:00:01.8]} 45. Qd1 {[%clk 0:00:18.3]} 1-0

[Event "*** Titled Tuesday Blitz"]
[Site "Chess.com"]
[Date "2021.04.06"]
[Round "8"]
[White "Vesper2018"]
[Black "anpospan"]
[Result "1-0"]
[WhiteElo "2545"]
[BlackElo "2403"]
[TimeControl "180+1"]
[EndTime "11:29:35 PDT"]
[Termination "Vesper2018 won by resignation"]

1. e4 {[%clk 0:03:00.9]} 1... b6 {[%clk 0:02:59]} 2. d4 {[%clk 0:03:00.1]} 2...
Bb7 {[%clk 0:02:59.4]} 3. Nc3 {[%clk 0:03:00.1]} 3... e6 {[%clk 0:02:59.5]} 4.
f4 {[%clk 0:02:55.7]} 4... Bb4 {[%clk 0:02:56.2]} 5. Bd3 {[%clk 0:02:53.1]} 5...
f5 {[%clk 0:02:53.1]} 6. Qe2 {[%clk 0:02:29.5]} 6... Qh4+ {[%clk 0:02:52.4]} 7.
g3 {[%clk 0:02:26.9]} 7... Qe7 {[%clk 0:02:52.2]} 8. Nf3 {[%clk 0:02:19]} 8...
Nf6 {[%clk 0:02:36.2]} 9. e5 {[%clk 0:01:56.5]} 9... Ne4 {[%clk 0:02:32.2]} 10.
Bd2 {[%clk 0:01:56.2]} 10... Nxd2 {[%clk 0:02:27.3]} 11. Kxd2 {[%clk 0:01:54.1]}
11... Nc6 {[%clk 0:02:23]} 12. a3 {[%clk 0:01:43.1]} 12... Bxc3+ {[%clk
0:02:11]} 13. Kxc3 {[%clk 0:01:43.3]} 13... Nxd4 {[%clk 0:02:03]} 14. Nxd4
{[%clk 0:01:39.5]} 14... Qc5+ {[%clk 0:01:46.1]} 15. Bc4 {[%clk 0:01:39.2]}
15... b5 {[%clk 0:01:30.4]} 16. Nxb5 {[%clk 0:01:32.4]} 16... Bxh1 {[%clk
0:01:23.9]} 17. Rxh1 {[%clk 0:01:31]} 17... Rb8 {[%clk 0:01:16.4]} 18. b4 {[%clk
0:01:28.9]} 18... Qc6 {[%clk 0:01:13]} 19. Nxc7+ {[%clk 0:01:00.7]} 19... Qxc7
{[%clk 0:01:09.9]} 20. Kb3 {[%clk 0:01:00.6]} 20... a5 {[%clk 0:01:08.8]} 21.
Rd1 {[%clk 0:00:56.1]} 21... axb4 {[%clk 0:01:07.7]} 22. axb4 {[%clk 0:00:56.1]}
22... Ke7 {[%clk 0:01:06.6]} 23. Bb5 {[%clk 0:00:54.2]} 23... Rhd8 {[%clk
0:01:04.4]} 24. c4 {[%clk 0:00:54.2]} 24... Ra8 {[%clk 0:01:00.6]} 25. Qd3
{[%clk 0:00:50.5]} 25... Qa7 {[%clk 0:00:56.6]} 26. Qd6+ {[%clk 0:00:46.1]}
26... Kf7 {[%clk 0:00:55.6]} 27. Qxd7+ {[%clk 0:00:45]} 27... Rxd7 {[%clk
0:00:50.1]} 28. Rxd7+ {[%clk 0:00:45]} 28... Qxd7 {[%clk 0:00:47.4]} 29. Bxd7
{[%clk 0:00:45.2]} 29... Ke7 {[%clk 0:00:41.2]} 30. Bc6 {[%clk 0:00:44.2]} 30...
Ra1 {[%clk 0:00:40]} 31. b5 {[%clk 0:00:42.8]} 31... Rd1 {[%clk 0:00:28.1]} 32.
Kc2 {[%clk 0:00:36.9]} 32... Rf1 {[%clk 0:00:24]} 33. c5 {[%clk 0:00:34.4]}
33... Rf2+ {[%clk 0:00:23.3]} 34. Kc3 {[%clk 0:00:34.2]} 34... Rxh2 {[%clk
0:00:23.1]} 35. b6 {[%clk 0:00:33.8]} 35... Kd8 {[%clk 0:00:22.5]} 36. Bb5
{[%clk 0:00:28.6]} 36... Rh1 {[%clk 0:00:19.7]} 37. c6 {[%clk 0:00:28.4]} 37...
Rc1+ {[%clk 0:00:15.8]} 38. Kd4 {[%clk 0:00:20.2]} 38... h6 {[%clk 0:00:14.8]}
39. Bc4 {[%clk 0:00:17]} 39... Rd1+ {[%clk 0:00:10.4]} 40. Kc5 {[%clk
0:00:17.1]} 40... Rb1 {[%clk 0:00:08.4]} 41. c7+ {[%clk 0:00:16.1]} 41... Kd7
{[%clk 0:00:07.5]} 42. Bxe6+ {[%clk 0:00:16.2]} 42... Kxe6 {[%clk 0:00:06.1]}
43. c8=Q+ {[%clk 0:00:16.6]} 43... Kf7 {[%clk 0:00:06.6]} 44. Qd7+ {[%clk
0:00:16.6]} 44... Kg8 {[%clk 0:00:07.1]} 45. Qc8+ {[%clk 0:00:15.7]} 45... Kh7
{[%clk 0:00:05.7]} 46. Qxf5+ {[%clk 0:00:16.3]} 46... Kh8 {[%clk 0:00:06.2]} 47.
Qxb1 {[%clk 0:00:15.8]} 1-0

[Event "*** Titled Tuesday Blitz"]
[Site "Chess.com"]
[Date "2021.04.06"]
[Round "8"]
[White "jonaszmb"]
[Black "Iskusnyh"]
[Result "0-1"]
[WhiteElo "2500"]
[BlackElo "2635"]
[TimeControl "180+1"]
[EndTime "11:29:36 PDT"]
[Termination "Iskusnyh won by resignation"]

1. e4 {[%clk 0:03:00.9]} 1... e6 {[%clk 0:02:59.8]} 2. d4 {[%clk 0:03:00.4]}
2... d5 {[%clk 0:03:00.3]} 3. Bd3 {[%clk 0:03:01]} 3... c5 {[%clk 0:02:59.7]} 4.
exd5 {[%clk 0:03:00.9]} 4... exd5 {[%clk 0:03:00.3]} 5. Nf3 {[%clk 0:03:01.2]}
5... Nf6 {[%clk 0:02:59.2]} 6. O-O {[%clk 0:03:01.2]} 6... Nc6 {[%clk
0:02:54.7]} 7. Re1+ {[%clk 0:02:59.9]} 7... Be7 {[%clk 0:02:54.4]} 8. dxc5
{[%clk 0:02:59.7]} 8... O-O {[%clk 0:02:54.4]} 9. Bg5 {[%clk 0:02:46]} 9... Bxc5
{[%clk 0:02:52.7]} 10. Nbd2 {[%clk 0:02:43]} 10... h6 {[%clk 0:02:47.1]} 11. Bh4
{[%clk 0:02:37.2]} 11... Bg4 {[%clk 0:02:42.8]} 12. Nb3 {[%clk 0:02:35.6]} 12...
Bb6 {[%clk 0:02:42.6]} 13. h3 {[%clk 0:02:32.6]} 13... Bh5 {[%clk 0:02:38.9]}
14. c3 {[%clk 0:02:28.3]} 14... Qd6 {[%clk 0:02:36.6]} 15. Bg3 {[%clk
0:02:21.6]} 15... Qxg3 {[%clk 0:02:34.3]} 16. Nbd4 {[%clk 0:02:16.1]} 16... Bxd4
{[%clk 0:02:14.9]} 17. Nxd4 {[%clk 0:02:04.7]} 17... Bxd1 {[%clk 0:02:09.9]} 18.
fxg3 {[%clk 0:02:04.9]} 18... Nxd4 {[%clk 0:02:08.7]} 19. Raxd1 {[%clk 0:02:03]}
19... Nc6 {[%clk 0:02:04.9]} 20. Bb5 {[%clk 0:01:52.7]} 20... Rfe8 {[%clk
0:02:02.2]} 21. g4 {[%clk 0:01:50.8]} 21... Kf8 {[%clk 0:01:59.6]} 22. Rf1
{[%clk 0:01:45.2]} 22... Re5 {[%clk 0:01:54.8]} 23. Kh2 {[%clk 0:01:33.9]} 23...
Rae8 {[%clk 0:01:52.4]} 24. Rf4 {[%clk 0:01:29.6]} 24... a6 {[%clk 0:01:48.3]}
25. Bd3 {[%clk 0:01:22.4]} 25... Re1 {[%clk 0:01:40.7]} 26. Rd2 {[%clk
0:01:20.3]} 26... Ne5 {[%clk 0:01:39.3]} 27. Bc2 {[%clk 0:01:06.4]} 27... Nc4
{[%clk 0:01:36.7]} 28. Rdf2 {[%clk 0:01:02.3]} 28... R8e2 {[%clk 0:01:30.5]} 29.
Bd3 {[%clk 0:01:01.6]} 29... Rxf2 {[%clk 0:01:28.8]} 30. Rxf2 {[%clk 0:01:02.5]}
30... Ne5 {[%clk 0:01:18.1]} 31. Bc2 {[%clk 0:01:02.6]} 31... Ke7 {[%clk
0:01:14.4]} 32. Rd2 {[%clk 0:00:52.9]} 32... Nc4 {[%clk 0:01:09]} 33. Rd4 {[%clk
0:00:50.8]} 33... Ne3 {[%clk 0:01:03.2]} 34. Bb3 {[%clk 0:00:38.8]} 34... Rb1
{[%clk 0:00:53.6]} 35. Rd3 {[%clk 0:00:30.7]} 35... Nf1+ {[%clk 0:00:51.8]} 36.
Kg1 {[%clk 0:00:31.2]} 36... Nd2+ {[%clk 0:00:51.7]} 37. Kh2 {[%clk 0:00:30.8]}
37... Nxb3 {[%clk 0:00:50.8]} 38. axb3 {[%clk 0:00:31.7]} 38... Rxb2 {[%clk
0:00:50.7]} 39. c4 {[%clk 0:00:31.2]} 39... dxc4 {[%clk 0:00:49.4]} 40. bxc4
{[%clk 0:00:32.1]} 40... a5 {[%clk 0:00:48.3]} 41. Ra3 {[%clk 0:00:29.6]} 41...
b6 {[%clk 0:00:48.2]} 42. c5 {[%clk 0:00:30.1]} 42... bxc5 {[%clk 0:00:47.9]}
43. Rxa5 {[%clk 0:00:30.3]} 43... Kd6 {[%clk 0:00:45.7]} 44. Ra7 {[%clk
0:00:27.7]} 44... Nd7 {[%clk 0:00:45.4]} 45. Ra6+ {[%clk 0:00:26.4]} 45... Rb6
{[%clk 0:00:43.6]} 46. Ra1 {[%clk 0:00:25.4]} 46... c4 {[%clk 0:00:43.4]} 47.
Kg3 {[%clk 0:00:25]} 47... c3 {[%clk 0:00:43.3]} 48. Rd1+ {[%clk 0:00:22]} 48...
Ke6 {[%clk 0:00:41.3]} 49. Re1+ {[%clk 0:00:16]} 49... Ne5 {[%clk 0:00:40.6]}
50. Kf4 {[%clk 0:00:15.9]} 50... f6 {[%clk 0:00:35.9]} 51. Ke4 {[%clk 0:00:12]}
51... Rb4+ {[%clk 0:00:34.9]} 52. Ke3 {[%clk 0:00:12.2]} 52... c2 {[%clk
0:00:34.6]} 53. Kd2 {[%clk 0:00:09.9]} 53... Rb1 {[%clk 0:00:33.1]} 0-1